Cogmind - Beta 11 X6 @@@ ROGUE MODE // 2021.08.08 @ 21:09:24 Player: Runia Result: Self-destructed Performance ------------- Evolutions (2) 1000 Regions Visited (4) 800 Robots Destroyed (63) 315 Value Destroyed (1331) 1331 Prototype IDs (7) 140 Alien Tech Used (0) 0 Bonus (52) 52 TOTAL SCORE: 3638 Bonus ------- High Alert Combat Kills 52 Cogmind --------- Core Integrity 228/550 Matter 260/300 Energy 240/240 System Corruption 0% Temperature Cool (0) Movement Rolling (150) Ox4 Location -8/Storage Parts ------- > --- POWER (1) -------- Nuclear Core > --- PROPULSION (3) --- Light Treads Improved Treads Armored Wheel > --- UTILITY (5) ------ Cooling System Cooling System High-capacity Storage Unit Light Armor Plating > --- WEAPON (2) ------- Particle Gun Heavy Particle Gun > --- INVENTORY (20) --- Light Ion Engine Nuclear Core Light Treads Light Treads Titanium Leg Titanium Leg Armored Wheel Armored Wheel Cooling System Transmission Jammer Hacking Suite Particle Gun Improved Medium Laser Improved Medium Laser Heavy Particle Gun Enhanced Autogun Improved Datajack Improved Datajack Mining Claw Scythe Peak State ------------ > --- POWER ------------ Nuclear Core > --- PROPULSION ------- Light Treads Improved Treads Armored Wheel > --- UTILITY ---------- Cooling System Cooling System High-capacity Storage Unit Light Armor Plating Hardened Medium Armor Plating > --- WEAPON ----------- Heavy Particle Gun Advanced Beam Cannon > --- INVENTORY -------- Nuclear Core Light Treads Light Treads Light Treads Light Treads Titanium Leg Titanium Leg Armored Wheel Armored Wheel Armored Wheel Cooling System Cooling System Transmission Jammer Particle Gun Improved Medium Laser Improved Medium Laser Heavy Particle Gun Enhanced Autogun Mining Claw [Rating: 28] Favorites ----------- Power Nuclear Core Engine Ion Engine Power Core Nuclear Core Propulsion Armored Wheel Treads Light Treads Leg Aluminum Leg Wheel Armored Wheel Utility Cooling System Device Cooling System Storage High-capacity Storage Unit Protection Hardened Medium Armor Plating Weapon Spread Laser Energy Gun Spread Laser Energy Cannon Advanced Beam Cannon Ballistic Gun Enhanced Autogun Slashing Weapon Mining Claw Build | -11 -10 -9 -8 -8 ------- Run | Scr Mat Mat Mat Sto Slots Evolved 4 | . . 2 2 . Power . | . . . . . Propulsion 1 | . . . 1 . Utility 3 | . . 2 1 . Weapon . | . . . . . Parts Attached 42 | . 9 10 14 9 Power 4 | . . 2 1 1 Engine 2 | . . 2 . . Core 2 | . . . 1 1 Reactor . | . . . . . Propulsion 14 | . 2 5 4 3 Treads 7 | . . 3 3 1 Leg . | . . . . . Wheel 7 | . 2 2 1 2 Hover . | . . . . . Flight . | . . . . . Utility 9 | . 2 1 3 3 Device 5 | . 1 1 1 2 Storage 1 | . 1 . . . Processor . | . . . . . Hackware . | . . . . . Protection 3 | . . . 2 1 Artifact . | . . . . . Weapon 15 | . 5 2 6 2 Energy Gun 12 | . 5 2 3 2 Energy Cannon 1 | . . . 1 . Ballistic Gun 1 | . . . 1 . Ballistic Cannon . | . . . . . Launcher . | . . . . . Special Weapon . | . . . . . Impact Weapon . | . . . . . Slashing Weapon 1 | . . . 1 . Piercing Weapon . | . . . . . Special Melee Weapon . | . . . . . Unidentified Prototypes 4 | . 1 . 3 . Parts Lost 10 | . . 2 1 7 Power 2 | . . 1 . 1 Propulsion 1 | . . . . 1 Utility 4 | . . . 1 3 Weapon 3 | . . 1 . 2 Highest Loss Streak 6 | . . 2 1 6 Average Slot Usage (%) 86 | . 86 86 87 83 Engine 6 | . 14 10 2 . Core 3 | . . . 6 9 Treads 10 | . . 5 18 18 Leg 3 | . 14 . . . Wheel 12 | . 14 16 9 9 Device 13 | . 1 21 17 12 Storage 10 | . 14 11 9 9 Protection 3 | . . . 7 8 Energy Gun 18 | . 28 21 10 15 Energy Cannon 1 | . . . 3 2 Naked Turns . | . . . . . Heaviest Build 69 | 13 53 54 69 69 Greatest Support 24 | 20 24 24 12 12 Greatest Overweight (x) 5 | . 2 4 5 5 Average Overweight (x) 2 | . . 2 4 4 Largest Inventory Capacity 20 | . 20 20 20 20 Average Capacity 18 | . 13 20 20 20 Most Carried 20 | . 17 18 20 20 Average Carried 16 | . 9 16 19 18 Final Capacity 20 | 8 20 20 20 20 Final Carried 20 | 6 17 18 20 20 Class Distribution -------------------- 100% | Mutant Dominant Class ---------------- Mutant | -10/Materials Mutant | -9/Materials Mutant | -8/Materials Mutant | -8/Storage Resources | -11 -10 -9 -8 -8 ----------- Run | Scr Mat Mat Mat Sto Matter Collected 618 | 200 90 94 194 40 Remotely . | . . . . . Salvage Created 1789 | . 173 502 451 663 Parts 118 | . 15 49 28 26 Haulers Intercepted 4 | . 1 2 1 . Recyclers Shooed 2 | . . . 1 1 Parts Field Recycled . | . . . . . Retrieved Matter . | . . . . . Parts Self-Destructed . | . . . . . Prevented . | . . . . . Kills | -11 -10 -9 -8 -8 ------- Run | Scr Mat Mat Mat Sto Combat Hostiles Destroyed 47 | . 6 18 10 13 Guns 42 | . 6 18 8 10 Cannons 5 | . . . 2 3 Classes Destroyed 11 | . 4 4 2 1 Worker 3 | . . 1 1 1 Builder 3 | . . 1 1 1 Hauler 4 | . 1 2 1 . Recycler 3 | . 1 . 1 1 Operator 1 | . . . . 1 Watcher 2 | . 1 1 . . Swarmer 24 | . 6 11 4 3 Grunt 14 | . . 5 3 6 Brawler 1 | . . . 1 . Sentry 7 | . . 2 1 4 Hunter 1 | . . . 1 . Best Kill Streak 14 | . 4 14 7 6 Combat Bots Only 11 | . 3 11 4 3 Max Kills in Single Turn 2 | . 1 2 2 1 Gunslinging 1 | . . 1 . . Exploded . | . . . . . Melee . | . . . . . Uniques/NPCs Destroyed . | . . . . . Combat | -11 -10 -9 -8 -8 -------- Run | Scr Mat Mat Mat Sto Damage Taken 2527 | . 85 575 906 961 Core 462 | . 23 117 125 197 Absorbed by Shields . | . . . . . Core Remaining (%) 86 | 100 90 70 . . Volleys Fired 142 | . 13 29 48 52 Largest 2 | . 2 2 2 2 Hottest 133 | . 130 130 133 133 Shots Fired 273 | . 26 57 87 103 Gun 228 | . 26 57 63 82 Cannon 45 | . . . 24 21 Launcher . | . . . . . Special . | . . . . . Kinetic 23 | . . . 23 . Thermal 250 | . 26 57 64 103 Explosive . | . . . . . Electromagnetic . | . . . . . Robot Hit Streak 16 | . 4 8 13 16 Robot Miss Streak 10 | . 6 7 9 10 Penetration Max . | . . . . . Secondary Targets 5 | . . 3 2 . Max Gunslinging Chain 1 | . . 1 1 . Shots Hit Robots 207 | . 22 51 59 75 Core Hits 180 | . 21 75 55 29 Critical Kills . | . . . . . Critical Parts Destroyed . | . . . . . Critical Strikes 4 | . . . . 4 Burn 4 | . . . . 4 Melee Attacks 8 | . . . 8 . Impact . | . . . . . Slashing 8 | . . . 8 . Piercing . | . . . . . Sneak Attacks . | . . . . . Combat Hostiles . | . . . . . Follow-up Attacks . | . . . . . Damage Inflicted 3216 | . 231 672 958 1355 Guns 2634 | . 231 672 625 1106 Cannons 582 | . . . 333 249 Explosions . | . . . . . Melee . | . . . . . Ramming . | . . . . . Kinetic 140 | . . . 140 . Thermal 3076 | . 231 672 818 1355 Explosive . | . . . . . Electromagnetic . | . . . . . Impact . | . . . . . Slashing . | . . . . . Piercing . | . . . . . Highest Corruption 1 | . 1 . . . Average Corruption 1 | . 1 . . . Corruption Purged . | . . . . . Effects 1 | . 1 . . . Energy Discharges 1 | . 1 . . . Overload Shots . | . . . . . Overflow Damage . | . . . . . Projectiles . | . . . . . Explosions . | . . . . . Melee . | . . . . . Knockbacks . | . . . . . Impact . | . . . . . Kinetic . | . . . . . Secondary . | . . . . . Self-Inflicted Damage . | . . . . . Shots . | . . . . . Rammed . | . . . . . Targets Rammed . | . . . . . Kicked . | . . . . . Crushed . | . . . . . Highest Temperature 334 | . 334 12 16 48 Average Temperature 52 | . 114 5 8 22 Received Heat Transfer 840 | . . 120 252 468 Siege Activations . | . . . . . Robots Corrupted . | . . . . . Combat Hostiles . | . . . . . Parts Fried . | . . . . . Impact Corruptions . | . . . . . Robots Melted . | . . . . . Combat Hostiles . | . . . . . Parts Melted 6 | . . 1 1 4 Heat Transferred 5400 | . 319 820 1209 3052 Parts Sabotaged . | . . . . . Parts Stolen . | . . . . . Parts Stripped . | . . . . . Power Chain Reactions . | . . . . . Missiles Intercepted . | . . . . . Alert | -11 -10 -9 -8 -8 ------- Run | Scr Mat Mat Mat Sto Peak Influence 507 | . 182 507 298 450 Initial 144 | . . 1 144 102 Average 198 | . 68 255 174 304 Maximum Alert Level 2 | . . 2 1 2 Low Security (%) 62 | . 100 38 86 18 Level 1 25 | . . 37 13 56 Level 2 11 | . . 24 . 24 Level 3 . | . . . . . Level 4 . | . . . . . Level 5 . | . . . . . High Security . | . . . . . Max Security . | . . . . . Squads Dispatched 4 | . . 2 . 2 Investigation . | . . . . . Extermination . | . . . . . Reinforcement 4 | . . 2 . 2 Assault . | . . . . . Garrison . | . . . . . Intercept . | . . . . . Construction Impeded . | . . . . . Haulers Reinforced . | . . . . . Active Scanning Responses . | . . . . . Cargo Convoy Interrupts . | . . . . . Stealth | -11 -10 -9 -8 -8 --------- Run | Scr Mat Mat Mat Sto Distress Signals 7 | . 1 3 1 2 Communications Jammed . | . . . . . Distress Signals . | . . . . . Times Spotted 73 | . 14 29 12 18 Peak Tracking Total 6 | . 6 4 5 4 Tactical Retreats 8 | . 3 3 1 1 Traps | -11 -10 -9 -8 -8 ------- Run | Scr Mat Mat Mat Sto Traps Triggered 2 | . 1 1 . . Indirectly . | . . . . . Trap Hack Attempts . | . . . . . Triggered . | . . . . . Disarmed . | . . . . . Reprogrammed . | . . . . . Reused . | . . . . . Traps Extracted . | . . . . . Installed . | . . . . . Triggered . | . . . . . Machines | -11 -10 -9 -8 -8 ---------- Run | Scr Mat Mat Mat Sto Machines Disabled . | . . . . . Max in Single Turn . | . . . . . Machines Sabotaged . | . . . . . Garrisons Compromised . | . . . . . Overloaded Fab Kills . | . . . . . Fab Network Shutdowns . | . . . . . Hacking | -11 -10 -9 -8 -8 --------- Run | Scr Mat Mat Mat Sto Machines Accessed 13 | . 4 4 3 2 Terminals 13 | . 4 4 3 2 Fabricators . | . . . . . Repair Stations . | . . . . . Recycling Units . | . . . . . Scanalyzers . | . . . . . Garrison Access . | . . . . . Total Hacks 39 | . 16 11 7 5 Successful 20 | . 10 4 3 3 Failed 19 | . 6 7 4 2 Catastrophic . | . . . . . Database Lockouts . | . . . . . Manual 21 | . 4 10 4 3 Terminals 39 | . 16 11 7 5 Fabricators . | . . . . . Repair Stations . | . . . . . Recycling Units . | . . . . . Scanalyzers . | . . . . . Garrison Access . | . . . . . Terminal Hacks 13 | . 7 2 2 2 Part Schematic 1 | . . 1 . . Robot Analysis 1 | . . . 1 . Prototype ID Bank 1 | . 1 . . . Branch Access Points 1 | . . . 1 . Emergency Access Points 1 | . 1 . . . Terminal Index 2 | . 1 1 . . Garrison Index 1 | . . . . 1 Unreport Threat 2 | . 2 . . . Locate Traps 1 | . 1 . . . Zone Layout 2 | . 1 . . 1 Fabricator Hacks . | . . . . . Repair Station Hacks . | . . . . . Recycling Unit Hacks . | . . . . . Scanalyzer . | . . . . . Garrison Access Hacks . | . . . . . Unauthorized Hacks 7 | . 3 2 1 1 Terminals 7 | . 3 2 1 1 Botnet 7 | . 3 2 1 1 Fabricators . | . . . . . Repair Stations . | . . . . . Recycling Units . | . . . . . Scanalyzers . | . . . . . Garrison Access . | . . . . . Data Cores Recovered . | . . . . . Used . | . . . . . Hacking Detections 13 | . 4 4 3 2 Full Trace Events . | . . . . . Feedback Events . | . . . . . Feedback Blocked . | . . . . . Robot Schematics Acquired . | . . . . . Robots Built . | . . . . . Matter . | . . . . . Time . | . . . . . Total Robot Build Rating . | . . . . . Part Schematics Acquired 1 | . . 1 . . Parts Built . | . . . . . Matter . | . . . . . Time . | . . . . . Total Part Build Rating . | . . . . . Parts Repaired . | . . . . . Time . | . . . . . Parts Recycled . | . . . . . Recycled Matter . | . . . . . Retrieved Matter . | . . . . . Retrieved Components . | . . . . . Parts Scanalyzed . | . . . . . Part Schematics Acquired . | . . . . . Parts Damaged . | . . . . . Bothacking | -11 -10 -9 -8 -8 ------------ Run | Scr Mat Mat Mat Sto Used RIF Installer . | . . . . . Robots Hacked . | . . . . . Non-combat . | . . . . . Combat . | . . . . . Robot Hacks Applied . | . . . . . Relay Couplers Released . | . . . . . Robots Rewired . | . . . . . Allies Hacked . | . . . . . Hacks Repelled . | . . . . . Allies | -11 -10 -9 -8 -8 -------- Run | Scr Mat Mat Mat Sto Total Allies . | . . . . . Largest Group . | . . . . . Highest-Rated Group . | . . . . . Highest-Rated Ally . | . . . . . Total Orders . | . . . . . Ally Attacks . | . . . . . Total Damage . | . . . . . Kills . | . . . . . Allies Corrupted . | . . . . . Allies Melted . | . . . . . Intel | -11 -10 -9 -8 -8 ------- Run | Scr Mat Mat Mat Sto Robot Analysis Total 1 | . . . 1 . Derelict Logs Recovered . | . . . . . Drone Launches . | . . . . . Drone Recoveries . | . . . . . Exploration | -11 -10 -9 -8 -8 ------------- Run | Scr Mat Mat Mat Sto Turns Passed 1950 | . 425 554 604 367 Spaces Moved 987 | 1 290 312 268 116 Core . | . . . . . Treads . | . . . . . Legs 167 | 1 166 . . . Wheels 820 | . 124 312 268 116 Hover . | . . . . . Flight . | . . . . . Fastest Speed 90 | 120 90 120 150 150 Average Speed 138 | 120 119 133 158 153 Slowest Speed 165 | 120 120 150 165 165 Overloaded Moves . | . . . . . Propulsion Burnouts . | . . . . . Robots Hopped . | . . . . . Cave-ins Triggered . | . . . . . Exploration Rate (%) 32 | 2 56 39 35 28 Regions Visited 4 Branch Regions 1 Pre-discovered Areas . | . . . . . Known Exits Taken 1 | . . . 1 . Unknown Exits Taken 3 | 1 1 1 . . Scrap Searched . | . . . . . Spaces Dug 5 | . . . 5 . Terrain Destroyed 5 | . . . 5 . Melee 5 | . . . 5 . Projectile . | . . . . . AOE . | . . . . . Terrain Rammed . | . . . . . Walls Destroyed . | . . . . . Machines Disabled . | . . . . . Actions | -11 -10 -9 -8 -8 --------- Run | Scr Mat Mat Mat Sto Total 1292 | . 346 390 352 204 Wait 48 | . 5 31 . 12 Move 983 | . 289 311 267 116 Hop . | . . . . . Pick Up 43 | . 19 7 7 10 Fast Attach 6 | . 2 . 4 . Attach 17 | . 2 5 3 7 Detach . | . . . . . Swap 19 | . 5 5 7 2 Drop 26 | . 11 2 8 5 Fire 142 | . 13 29 48 52 Melee 8 | . . . 8 . Ram . | . . . . . Kick . | . . . . . Crush . | . . . . . Escape Stasis . | . . . . . Rewire . | . . . . . Trap . | . . . . . Miscellaneous . | . . . . . Route ------- -11/Scrapyard -10/Materials (discovered 3 exits: *Mat x2 / [*Min]) -9/Materials -8/Materials (discovered 2 exits: *Sto x2) -8/Storage History --------- Turn | Location | Event 1 | -11/Scrapyard | Discovered new exit (range 0) 1 | -11/Scrapyard | Entered Materials 7 | -10/Materials | Discovered new exit (range 16) 186 | -10/Materials | Discovered new exit (range 4) 304 | -10/Materials | Build established: Mutant 412 | -10/Materials | Discovered new exit (range 5) 426 | -10/Materials | Entered another Materials area 426 | -9/Materials | Evolved 2 slots: Utility x2 720 | -9/Materials | Destroyed 11 combat bots 969 | -9/Materials | Discovered new exit (range 7) 980 | -9/Materials | Entered another Materials area 980 | -8/Materials | Evolved 2 slots: Propulsion x1, Utility x1 1144 | -8/Materials | Identified exit to Storage 1584 | -8/Materials | Entered Storage 1727 | -8/Storage | Lost 6 parts (1p3u2w) 1759 | -8/Storage | Core integrity fell below 50% 1951 | -8/Storage | Self-destructed Last Messages --------------- K-01 Serf collects debris. Acquired Scythe. Acquired Imp. Datajack. Dropped Arm. Wheel. Dropped Cooling System. Acquired Cooling System. Connecting with Terminal... >>Index(Garrisons) Found 1 garrison access. Downloaded coordinate data. >>Layout(Zone) Retrieving Zone 8R layout... Downloaded map data. Dropped Lgt. Treads. Acquired Imp. Datajack. Connecting with Terminal... U-05 Engineer builds a Door. Acquired Nuclear Core. Dropped Nuclear Core. Acquired Nuclear Core. Map ----- +----------------------------------------------------+ | ???????????????????????????????? ?# #????? | | ?????????????????????????????????######## ##???? | | ???????????????????##+##+###############% #???? | | ?????????????????? ^^ %=% % #???? | | ?????????????????? ^ %[! #???? | | ?????????????????? ^%=%=% #???? | | ????????????????##################+##### #???? | | ??????????####### ???# %%%#?#######???? | | ??????? #### [#???????????? | | ??????? / % % !#???????????? | | ??????? #### % #???????????? | | ??????????####### ???# #???????????? | | ????????????????#####????# # ??????????? | | ?????????????????????????# % # ????"?????? | | ????????????????##################+### ? """????? | | ????????????????# % % # """ ""?? | | ????????????????# + #??? | | ????????????????# % # #??? | | ????????????????######+##+######+###+# " " #??? | | ?????????????????# ## [ # "R" #??? | | ?????????????????# """ #""" # ?"" #??? | | ?????????????????# """ ##""" ##??######??? | | ?????????????????# """ ! ##""" #???????????? | | ?????????????????# """ = ## #???????????? | | ?????????????????# """ = ##""" #???????????? | | ?????????????????# @ ##""" ] #???????????? | | ?????????????????# ##""" #???????????? | | ?????????????????##"Y"#T##### #???????????? | | ??????????????????#"""############ ###???????????? | | ??????????????????#####?# #?###?????????????? | | ????????????????????????# #######???????????? | | ????????????????????????# ## ##T##??????????? | | ??????????????########### # ??????????? | | ??????????????# #######+# ??????????? | | ??????????????# """" ##"""## # ??????????? | | ??????????????# "" " ##"G"## # """??????????? | | ??????????????# """ " ##" "## # """??????????? | | ??????????????# " """ + + """??????????? | | ??????????????# " "" # # """??????????? | | ??????????????# """" # "# ??????????? | | ??????????????# # T# ??????????? | | ??????????????# # "#####+##??????????? | | ??????????????###+###### ??????????? | | ?????????????????????????????????????????????????? | | ?????????????????????????????????????????????????? | | ?????????????????????????????????????????????????? | | ?????????????????????????????????????????????????? | | ?????????????????????????????????????????????????? | | ?????????????????????????????????????????????????? | | ?????????????????????????????????????????????????? | +----------------------------------------------------+ Best States ------------- Heat Dissipation 75 Energy Generation 14 Energy Capacity 250 Matter Stores 300 Matter Capacity 300 Sight Range 16 Terrain Scan Density 10 Armor Coverage 375 Evasion (%) 55 Item Schematics ----------------- Hcp. Storage Unit | -9/Materials | Hacked Robot Schematics ------------------ None Fabricated ------------ Nothing Alien Tech Used ----------------- None Achievements -------------- None Challenges ------------ None Game ------ Seed AdvancedWeightSlayer Manual? 0 Play Time 00:18:39 Cumulative 264.8 hours Start 2021.08.08 @ 00:42:40 End 2021.08.08 @ 21:09:24 Sessions 5 Manual Loads 0 Difficulty Rogue Special Mode None Game No. 317 Rogue 317 Adventurer 0 Explorer 0 Win Type - Total 5 Types 5/0/0/0/0/0/0/0/0 Lore% 65 Gallery% 84 Achievement% 62 Wizard Run 0 Options --------- ASCII 0 Keyboard 0 Movement Mouse Keybinds 1 Fullscreen 2 Font 24/Smallcaps Map View 76x50 Tactical HUD 1 Map Filters NONE Filters NONE Steam 1 RUN: f2cff058-de0b-4115-9fe9-3e473520ea9f